[Event "Paul Kerese Mälestusfestival 2022 Välkturniir"]
[Site "Paul Kerese Mälestusfestival 2022 Kiirturniir"]
[Date "????.??.??"]
[Round "8.6"]
[White "Heinmets, Tõnu"]
[Black "Mikko, Rondo"]
[Result "0-1"]
[TimeControl "3 min + 2 sek iga käigu eest"]
[WhiteElo "1939"]
[BlackElo "1933"]

1. Nf3 {[%clk 00:03:02]} {[%emt 00:00:02]} c5 {[%clk 00:03:03]} {[%emt
00:00:02]} 2. g3 {[%clk 00:03:02]} {[%emt 00:00:01]} Nf6 {[%clk 00:02:59]}
{[%emt 00:00:06]} 3. Bg2 {[%clk 00:03:03]} {[%emt 00:00:01]} e6 {[%clk
00:03:00]} {[%emt 00:00:01]} 4. O-O {[%clk 00:03:04]} {[%emt 00:00:01]} d5
{[%clk 00:03:00]} {[%emt 00:00:01]} 5. d3 {[%clk 00:03:05]} b6 {[%clk
00:03:01]} {[%emt 00:00:01]} 6. Nbd2 {[%clk 00:03:06]} Bb7 {[%clk 00:03:02]} 7.
Re1 {[%clk 00:03:07]} Be7 {[%clk 00:03:03]} {[%emt 00:00:01]} 8. c3 {[%clk
00:03:07]} {[%emt 00:00:02]} O-O {[%clk 00:03:03]} {[%emt 00:00:02]} 9. a4
{[%clk 00:02:55]} {[%emt 00:00:15]} Nc6 {[%clk 00:03:03]} {[%emt 00:00:01]} 10.
Qc2 {[%clk 00:02:55]} {[%emt 00:00:02]} a6 {[%clk 00:03:01]} {[%emt 00:00:04]}
11. e4 {[%clk 00:02:56]} {[%emt 00:00:01]} Re8 {[%clk 00:02:49]} {[%emt
00:00:15]} 12. e5 {[%clk 00:02:54]} {[%emt 00:00:04]} Nd7 {[%clk 00:02:47]}
{[%emt 00:00:04]} 13. Nf1 {[%clk 00:02:54]} {[%emt 00:00:02]} b5 {[%clk
00:02:47]} {[%emt 00:00:02]} 14. h4 {[%clk 00:02:49]} {[%emt 00:00:06]} d4
{[%clk 00:02:14]} {[%emt 00:00:34]} 15. h5 {[%clk 00:02:45]} {[%emt 00:00:07]}
dxc3 {[%clk 00:02:07]} {[%emt 00:00:10]} 16. bxc3 {[%clk 00:02:45]} {[%emt
00:00:01]} b4 {[%clk 00:02:07]} {[%emt 00:00:02]} 17. Bd2 {[%clk 00:02:21]}
{[%emt 00:00:26]} bxc3 {[%clk 00:02:08]} {[%emt 00:00:02]} 18. Bxc3 {[%clk
00:02:22]} Nb4 {[%clk 00:02:09]} {[%emt 00:00:01]} 19. Qe2 {[%clk 00:02:05]}
{[%emt 00:00:19]} a5 {[%clk 00:02:09]} {[%emt 00:00:02]} 20. g4 {[%clk
00:02:03]} {[%emt 00:00:05]} Nb6 {[%clk 00:02:08]} {[%emt 00:00:03]} 21. Bxb4
{[%clk 00:01:59]} {[%emt 00:00:06]} axb4 {[%clk 00:02:03]} {[%emt 00:00:06]} 22.
a5 {[%clk 00:01:40]} {[%emt 00:00:21]} Nd5 {[%clk 00:02:05]} 23. Ng3 {[%clk
00:01:27]} {[%emt 00:00:15]} Rxa5 {[%clk 00:01:58]} {[%emt 00:00:09]} 24. Rxa5
{[%clk 00:01:28]} {[%emt 00:00:01]} Qxa5 {[%clk 00:01:59]} 25. Qd2 {[%clk
00:01:11]} {[%emt 00:00:19]} Qb6 {[%clk 00:01:54]} {[%emt 00:00:07]} 26. Ne4
{[%clk 00:01:11]} {[%emt 00:00:02]} b3 {[%clk 00:01:27]} {[%emt 00:00:29]} 27.
Rb1 {[%clk 00:01:06]} {[%emt 00:00:08]} Ba6 {[%clk 00:01:14]} {[%emt 00:00:15]}
28. Nc3 {[%clk 00:00:55]} {[%emt 00:00:12]} Nxc3 {[%clk 00:01:10]} {[%emt
00:00:06]} 29. Qxc3 {[%clk 00:00:56]} {[%emt 00:00:01]} Rb8 {[%clk 00:01:11]}
{[%emt 00:00:01]} 30. Nd2 {[%clk 00:00:53]} {[%emt 00:00:05]} b2 {[%clk
00:01:05]} {[%emt 00:00:08]} 31. Be4 {[%clk 00:00:33]} {[%emt 00:00:22]} Qb4
{[%clk 00:01:05]} {[%emt 00:00:02]} 32. Qc2 {[%clk 00:00:33]} {[%emt 00:00:02]}
g6 {[%clk 00:00:57]} {[%emt 00:00:10]} 33. hxg6 {[%clk 00:00:28]} {[%emt
00:00:07]} hxg6 {[%clk 00:00:58]} 34. Nc4 {[%clk 00:00:21]} {[%emt 00:00:09]}
Bxc4 {[%clk 00:00:55]} {[%emt 00:00:06]} 35. dxc4 {[%clk 00:00:22]} {[%emt
00:00:01]} Bg5 {[%clk 00:00:54]} {[%emt 00:00:02]} 36. Bxg6 {[%clk 00:00:20]}
{[%emt 00:00:04]} Bc1 {[%clk 00:00:35]} {[%emt 00:00:21]} 37. Bxf7+ {[%clk
00:00:14]} {[%emt 00:00:09]} Kxf7 {[%clk 00:00:32]} {[%emt 00:00:05]} 38. Qh7+
{[%clk 00:00:14]} {[%emt 00:00:01]} Ke8 {[%clk 00:00:33]} {[%emt 00:00:01]} 39.
Qg8+ {[%clk 00:00:12]} {[%emt 00:00:05]} Kd7 {[%clk 00:00:34]} {[%emt
00:00:01]} 40. Qf7+ {[%clk 00:00:10]} {[%emt 00:00:04]} Kd8 {[%clk 00:00:29]}
{[%emt 00:00:06]} 41. Qf8+ {[%clk 00:00:09]} {[%emt 00:00:04]} Kc7 {[%clk
00:00:30]} 42. Qd6+ {[%clk 00:00:09]} {[%emt 00:00:02]} Kb7 {[%emt 00:00:02]}
43. Qxe6 {[%clk 00:00:06]} {[%emt 00:00:04]} Qe1+ {[%clk 00:00:29]} {[%emt
00:00:04]} 44. Kg2 {[%clk 00:00:03]} {[%emt 00:00:05]} Qe4+ {[%clk 00:00:30]}
45. Kg3 {[%clk 00:00:04]} {[%emt 00:00:01]} Bf4+ {[%clk 00:00:27]} {[%emt
00:00:05]} 46. Kh4 {[%emt 00:00:05]} Rh8+ 0-1

[Event "Paul Kerese Mälestusfestival 2022 Välkturniir"]
[Site "Paul Kerese Mälestusfestival 2022 Kiirturniir"]
[Date "????.??.??"]
[Round "8.7"]
[White "Teelem, Lauri"]
[Black "Golubovskis, Maksims"]
[Result "0-1"]
[TimeControl "3 min + 2 sek iga käigu eest"]
[WhiteElo "2012"]
[BlackElo "2163"]

1. d4 {[%clk 00:03:02]} {[%emt 00:07:41]} Nf6 {[%clk 00:03:02]} 2. c4 {[%clk
00:03:02]} {[%emt 00:00:02]} e6 {[%clk 00:03:02]} 3. Nc3 {[%clk 00:03:02]}
{[%emt 00:00:01]} Bb4 {[%clk 00:03:02]} 4. a3 {[%clk 00:03:02]} {[%emt
00:00:02]} Bxc3+ {[%clk 00:03:02]} 5. bxc3 {[%clk 00:03:02]} d6 {[%clk
00:03:02]} {[%emt 00:00:05]} 6. f3 {[%clk 00:03:02]} {[%emt 00:00:02]} O-O
{[%clk 00:03:02]} {[%emt 00:00:03]} 7. e4 {[%clk 00:03:02]} Nbd7 {[%clk
00:03:02]} 8. Bd3 {[%clk 00:03:02]} {[%emt 00:00:01]} e5 {[%clk 00:03:01]}
{[%emt 00:00:04]} 9. Ne2 {[%clk 00:03:02]} {[%emt 00:00:02]} a5 {[%clk
00:02:58]} {[%emt 00:00:05]} 10. O-O {[%clk 00:02:57]} {[%emt 00:00:07]} Qe7
{[%clk 00:02:37]} {[%emt 00:00:23]} 11. Ng3 {[%clk 00:02:41]} {[%emt 00:00:18]}
Nb6 {[%clk 00:02:37]} {[%emt 00:00:02]} 12. Rb1 {[%clk 00:02:21]} {[%emt
00:00:22]} Be6 {[%clk 00:02:32]} {[%emt 00:00:07]} 13. Qe2 {[%clk 00:02:15]}
{[%emt 00:00:08]} a4 {[%clk 00:02:20]} {[%emt 00:00:14]} 14. Be3 {[%clk
00:02:14]} {[%emt 00:00:03]} Bc8 {[%clk 00:01:54]} {[%emt 00:00:28]} 15. f4
{[%clk 00:01:53]} {[%emt 00:00:23]} Ng4 {[%clk 00:01:47]} {[%emt 00:00:09]} 16.
Bd2 {[%clk 00:01:30]} {[%emt 00:00:19]} Qh4 {[%clk 00:01:47]} {[%emt 00:00:08]}
17. h3 {[%clk 00:01:23]} {[%emt 00:00:09]} Qxg3 {[%clk 00:01:48]} {[%emt
00:00:01]} 18. hxg4 {[%clk 00:01:19]} {[%emt 00:00:06]} Bxg4 {[%clk 00:01:44]}
{[%emt 00:00:06]} 19. Qe3 {[%clk 00:01:15]} {[%emt 00:00:06]} exf4 {[%clk
00:01:37]} {[%emt 00:00:09]} 20. Rxf4 {[%clk 00:01:07]} {[%emt 00:00:10]} Qxe3+
{[%clk 00:01:37]} {[%emt 00:00:01]} 21. Bxe3 {[%clk 00:01:08]} {[%emt
00:00:01]} Be6 {[%clk 00:01:39]} 22. d5 {[%clk 00:01:06]} {[%emt 00:00:04]} Bc8
{[%clk 00:01:06]} {[%emt 00:00:34]} 23. Bxb6 {[%clk 00:01:07]} {[%emt
00:00:02]} cxb6 {[%clk 00:01:08]} 24. Rxb6 {[%clk 00:01:07]} {[%emt 00:00:01]}
Rd8 {[%clk 00:01:06]} {[%emt 00:00:04]} 25. Kf2 {[%clk 00:01:01]} {[%emt
00:00:08]} Ra5 {[%clk 00:01:08]} 26. Ke3 {[%clk 00:00:59]} {[%emt 00:00:05]} f6
{[%clk 00:01:09]} {[%emt 00:00:01]} 27. Kd4 {[%clk 00:00:59]} Kf7 {[%clk
00:01:07]} {[%emt 00:00:03]} 28. Rf1 {[%clk 00:00:50]} {[%emt 00:00:12]} h5
{[%clk 00:01:02]} {[%emt 00:00:07]} 29. g3 {[%clk 00:00:46]} {[%emt 00:00:07]}
Ke7 {[%clk 00:00:50]} {[%emt 00:00:14]} 30. Rfb1 {[%clk 00:00:42]} {[%emt
00:00:05]} Rh8 {[%clk 00:00:45]} {[%emt 00:00:06]} 31. R1b5 {[%clk 00:00:34]}
{[%emt 00:00:10]} Rxb5 {[%clk 00:00:43]} {[%emt 00:00:05]} 32. cxb5 {[%clk
00:00:35]} {[%emt 00:00:01]} h4 {[%clk 00:00:42]} {[%emt 00:00:02]} 33. gxh4
{[%clk 00:00:35]} {[%emt 00:00:02]} Rxh4 {[%clk 00:00:44]} 34. c4 {[%clk
00:00:13]} {[%emt 00:00:23]} f5 {[%clk 00:00:45]} 35. c5 {[%clk 00:00:07]}
{[%emt 00:00:08]} dxc5+ {[%clk 00:00:35]} {[%emt 00:00:12]} 36. Kxc5 {[%clk
00:00:05]} {[%emt 00:00:04]} fxe4 {[%clk 00:00:36]} 37. Be2 {[%clk 00:00:06]}
Rh2 {[%clk 00:00:32]} {[%emt 00:00:06]} 38. d6+ {[%clk 00:00:07]} Kd8 {[%clk
00:00:27]} {[%emt 00:00:07]} 39. Bh5 {[%clk 00:00:08]} {[%emt 00:00:01]} Rxh5+
{[%clk 00:00:26]} {[%emt 00:00:02]} 0-1

[Event "Paul Kerese Mälestusfestival 2022 Välkturniir"]
[Site "Paul Kerese Mälestusfestival 2022 Kiirturniir"]
[Date "????.??.??"]
[Round "8.8"]
[White "Paan, Karel"]
[Black "Kraini, Juri"]
[Result "0-1"]
[TimeControl "3 min + 2 sek iga käigu eest"]
[WhiteElo "1792"]
[BlackElo "1692"]

1. Nf3 {[%clk 00:03:03]} {[%emt 00:05:36]} d5 {[%clk 00:03:03]} {[%emt
00:00:02]} 2. c4 {[%clk 00:03:04]} {[%emt 00:00:01]} c6 {[%clk 00:03:03]}
{[%emt 00:00:02]} 3. g3 {[%clk 00:03:03]} {[%emt 00:00:02]} Nf6 {[%clk
00:03:04]} 4. Bg2 {[%clk 00:03:04]} {[%emt 00:00:02]} g6 {[%clk 00:03:05]}
{[%emt 00:00:01]} 5. O-O {[%clk 00:03:04]} {[%emt 00:00:02]} Bg7 {[%clk
00:03:06]} {[%emt 00:00:01]} 6. d4 {[%clk 00:02:58]} {[%emt 00:00:07]} O-O
{[%clk 00:03:05]} {[%emt 00:00:03]} 7. Ne5 {[%clk 00:02:58]} {[%emt 00:00:02]}
Nbd7 {[%clk 00:03:02]} {[%emt 00:00:05]} 8. f4 {[%clk 00:02:56]} {[%emt
00:00:04]} e6 {[%clk 00:02:55]} {[%emt 00:00:09]} 9. Nc3 {[%clk 00:02:54]}
{[%emt 00:00:03]} Qb6 {[%clk 00:02:27]} {[%emt 00:00:30]} 10. e3 {[%clk
00:02:39]} {[%emt 00:00:18]} dxc4 {[%clk 00:02:16]} {[%emt 00:00:13]} 11. Nxc4
{[%clk 00:02:38]} {[%emt 00:00:02]} Qc7 {[%clk 00:02:17]} {[%emt 00:00:01]} 12.
Bd2 {[%clk 00:02:23]} {[%emt 00:00:17]} c5 {[%clk 00:02:17]} {[%emt 00:00:01]}
13. dxc5 {[%clk 00:01:33]} {[%emt 00:00:52]} Nxc5 {[%clk 00:02:17]} {[%emt
00:00:03]} 14. Ne5 {[%clk 00:01:24]} {[%emt 00:00:12]} Nfd7 {[%clk 00:02:11]}
{[%emt 00:00:08]} 15. Nxd7 {[%clk 00:01:23]} {[%emt 00:00:03]} Bxd7 {[%clk
00:02:11]} {[%emt 00:00:02]} 16. Rc1 {[%clk 00:00:54]} {[%emt 00:00:30]} Nd3
{[%clk 00:02:01]} {[%emt 00:00:12]} 17. Rc2 {[%clk 00:00:40]} {[%emt 00:00:16]}
Nb4 {[%clk 00:02:02]} {[%emt 00:00:01]} 18. Rc1 {[%clk 00:00:40]} {[%emt
00:00:02]} Qb6 {[%clk 00:02:00]} {[%emt 00:00:04]} 19. Qe2 {[%clk 00:00:30]}
{[%emt 00:00:11]} Bc6 {[%clk 00:01:55]} {[%emt 00:00:08]} 20. a3 {[%clk
00:00:16]} {[%emt 00:00:16]} Bxg2 {[%clk 00:01:49]} {[%emt 00:00:07]} 21. Kxg2
{[%clk 00:00:17]} {[%emt 00:00:02]} Nc6 {[%clk 00:01:41]} {[%emt 00:00:11]} 22.
e4 {[%clk 00:00:13]} {[%emt 00:00:06]} Qxb2 {[%clk 00:01:34]} {[%emt 00:00:08]}
23. Rb1 {[%clk 00:00:04]} {[%emt 00:00:11]} Qxa3 {[%clk 00:01:35]} {[%emt
00:00:01]} 24. e5 {[%clk 00:00:03]} {[%emt 00:00:03]} b6 {[%clk 00:01:33]}
{[%emt 00:00:05]} 25. Ne4 {[%clk 00:00:04]} Rfd8 {[%clk 00:01:31]} {[%emt
00:00:03]} 26. h4 {[%clk 00:00:04]} {[%emt 00:00:02]} Nd4 {[%clk 00:01:30]}
{[%emt 00:00:03]} 27. Qe3 {[%clk 00:00:04]} {[%emt 00:00:02]} Qe7 {[%clk
00:01:26]} {[%emt 00:00:06]} 28. h5 {[%clk 00:00:04]} {[%emt 00:00:01]} gxh5
{[%clk 00:01:26]} {[%emt 00:00:02]} 29. Rh1 {[%clk 00:00:06]} Nf5 {[%clk
00:01:26]} {[%emt 00:00:01]} 30. Qe2 {[%clk 00:00:06]} {[%emt 00:00:02]} h4
{[%clk 00:01:26]} {[%emt 00:00:02]} 31. g4 {[%clk 00:00:05]} {[%emt 00:00:02]}
Ng3 {[%clk 00:01:27]} {[%emt 00:00:02]} 32. Nxg3 {[%clk 00:00:06]} {[%emt
00:00:02]} hxg3 {[%clk 00:01:27]} {[%emt 00:00:02]} 33. Kxg3 {[%clk 00:00:06]}
{[%emt 00:00:01]} Qa3+ {[%clk 00:01:19]} {[%emt 00:00:11]} 34. Kg2 {[%emt
00:00:05]} Rd3 0-1

[Event "Paul Kerese Mälestusfestival 2022 Välkturniir"]
[Site "Paul Kerese Mälestusfestival 2022 Kiirturniir"]
[Date "????.??.??"]
[Round "9.1"]
[White "Agrest, Evgenij"]
[Black "Bernotas, Arturs"]
[Result "1-0"]
[TimeControl "3 min + 2 sek iga käigu eest"]
[WhiteTitle "GM"]
[BlackTitle "FM"]
[WhiteElo "2574"]
[BlackElo "2382"]

1. Nf3 {[%clk 00:03:02]} Nf6 {[%clk 00:03:03]} {[%emt 00:00:02]} 2. b3 {[%clk
00:03:03]} {[%emt 00:00:01]} d5 {[%clk 00:02:58]} {[%emt 00:00:06]} 3. Bb2
{[%clk 00:03:02]} {[%emt 00:00:03]} e6 {[%clk 00:02:46]} {[%emt 00:00:15]} 4.
e3 {[%clk 00:02:59]} {[%emt 00:00:04]} c5 {[%clk 00:02:46]} {[%emt 00:00:02]} 5.
c4 {[%clk 00:03:00]} {[%emt 00:00:01]} Nc6 {[%clk 00:02:43]} {[%emt 00:00:05]}
6. cxd5 {[%clk 00:03:01]} {[%emt 00:00:02]} exd5 {[%clk 00:02:41]} {[%emt
00:00:05]} 7. Nc3 {[%clk 00:03:01]} {[%emt 00:00:01]} Be7 {[%clk 00:02:40]}
{[%emt 00:00:02]} 8. Rc1 {[%clk 00:03:02]} {[%emt 00:00:02]} Bg4 {[%clk
00:02:34]} {[%emt 00:00:07]} 9. Be2 {[%clk 00:02:58]} {[%emt 00:00:07]} d4
{[%clk 00:02:24]} {[%emt 00:00:12]} 10. Na4 {[%clk 00:02:54]} {[%emt 00:00:06]}
d3 {[%clk 00:01:53]} {[%emt 00:00:33]} 11. Bf1 {[%clk 00:02:55]} {[%emt
00:00:01]} Ne4 {[%clk 00:01:53]} {[%emt 00:00:01]} 12. h3 {[%clk 00:02:46]}
{[%emt 00:00:11]} Bh5 {[%clk 00:01:53]} {[%emt 00:00:02]} 13. g4 {[%clk
00:02:40]} {[%emt 00:00:08]} Bg6 {[%clk 00:01:53]} {[%emt 00:00:03]} 14. Bg2
{[%clk 00:02:21]} {[%emt 00:00:21]} h5 {[%clk 00:01:52]} {[%emt 00:00:03]} 15.
Ne5 {[%clk 00:01:53]} {[%emt 00:00:29]} Bh4 {[%clk 00:01:12]} {[%emt 00:00:43]}
16. O-O {[%clk 00:01:29]} {[%emt 00:00:26]} Nxe5 {[%clk 00:01:04]} {[%emt
00:00:09]} 17. Bxe5 {[%clk 00:01:28]} {[%emt 00:00:02]} hxg4 {[%clk 00:00:59]}
{[%emt 00:00:07]} 18. Qxg4 {[%clk 00:01:16]} {[%emt 00:00:14]} Nxd2 {[%clk
00:00:55]} {[%emt 00:00:06]} 19. Rfd1 {[%clk 00:01:17]} {[%emt 00:00:03]} Bh5
{[%clk 00:00:53]} {[%emt 00:00:03]} 20. Qxg7 {[%clk 00:01:17]} {[%emt
00:00:02]} 1-0

[Event "Paul Kerese Mälestusfestival 2022 Välkturniir"]
[Site "Paul Kerese Mälestusfestival 2022 Kiirturniir"]
[Date "????.??.??"]
[Round "9.2"]
[White "Maiorov, Nikita"]
[Black "Agafonov, Yuri"]
[Result "0-1"]
[TimeControl "3 min + 2 sek iga käigu eest"]
[WhiteTitle "GM"]
[WhiteElo "2417"]
[BlackElo "1913"]

1. d4 {[%clk 00:03:02]} {[%emt 00:00:17]} Nf6 {[%clk 00:03:04]} 2. c4 {[%clk
00:03:03]} {[%emt 00:00:01]} g6 {[%clk 00:03:03]} {[%emt 00:00:02]} 3. g3
{[%clk 00:03:02]} {[%emt 00:00:04]} Bg7 {[%clk 00:03:04]} 4. Bg2 {[%clk
00:03:02]} {[%emt 00:00:02]} O-O {[%clk 00:03:05]} {[%emt 00:00:02]} 5. Nc3
{[%clk 00:03:02]} {[%emt 00:00:02]} d6 {[%clk 00:03:03]} {[%emt 00:00:05]} 6.
Nf3 {[%clk 00:03:03]} {[%emt 00:00:01]} Nc6 {[%clk 00:03:02]} {[%emt 00:00:03]}
7. O-O {[%clk 00:03:02]} {[%emt 00:00:02]} e5 {[%clk 00:03:01]} {[%emt
00:00:03]} 8. d5 {[%clk 00:02:54]} {[%emt 00:00:11]} Ne7 {[%clk 00:02:59]}
{[%emt 00:00:04]} 9. e4 {[%clk 00:02:54]} {[%emt 00:00:01]} h6 {[%clk
00:02:57]} {[%emt 00:00:04]} 10. Ne1 {[%clk 00:02:53]} {[%emt 00:00:03]} c6
{[%clk 00:02:49]} {[%emt 00:00:10]} 11. Nd3 {[%clk 00:02:47]} {[%emt 00:00:07]}
cxd5 {[%clk 00:02:42]} {[%emt 00:00:10]} 12. cxd5 {[%clk 00:02:47]} {[%emt
00:00:02]} a6 {[%clk 00:02:39]} {[%emt 00:00:05]} 13. a4 {[%clk 00:02:41]}
{[%emt 00:00:08]} Bd7 {[%clk 00:02:38]} {[%emt 00:00:02]} 14. Bd2 {[%clk
00:02:37]} {[%emt 00:00:07]} Qb6 {[%clk 00:02:37]} {[%emt 00:00:03]} 15. Ra2
{[%clk 00:02:26]} {[%emt 00:00:12]} Rfc8 {[%clk 00:02:31]} {[%emt 00:00:09]} 16.
Be3 {[%clk 00:02:18]} {[%emt 00:00:10]} Qd8 {[%clk 00:02:29]} {[%emt 00:00:03]}
17. a5 {[%clk 00:02:09]} {[%emt 00:00:12]} Ng4 {[%clk 00:02:23]} {[%emt
00:00:08]} 18. Bd2 {[%clk 00:02:08]} {[%emt 00:00:03]} f5 {[%clk 00:02:12]}
{[%emt 00:00:13]} 19. f3 {[%clk 00:02:06]} {[%emt 00:00:04]} Nf6 {[%clk
00:02:08]} {[%emt 00:00:06]} 20. Be3 {[%clk 00:02:04]} {[%emt 00:00:05]} Qe8
{[%clk 00:02:02]} {[%emt 00:00:08]} 21. Qd2 {[%clk 00:01:59]} {[%emt 00:00:07]}
Kh7 {[%clk 00:01:58]} {[%emt 00:00:07]} 22. Kh1 {[%clk 00:01:54]} {[%emt
00:00:06]} Bb5 {[%clk 00:01:47]} {[%emt 00:00:13]} 23. Re1 {[%clk 00:01:32]}
{[%emt 00:00:24]} Rc7 {[%clk 00:01:40]} {[%emt 00:00:10]} 24. Raa1 {[%clk
00:01:30]} {[%emt 00:00:04]} Rac8 {[%clk 00:01:36]} {[%emt 00:00:05]} 25. Bb6
{[%clk 00:01:30]} {[%emt 00:00:03]} Rc4 {[%clk 00:01:31]} {[%emt 00:00:07]} 26.
Rac1 {[%clk 00:01:25]} {[%emt 00:00:07]} h5 {[%clk 00:01:16]} {[%emt 00:00:17]}
27. Nf2 {[%clk 00:01:12]} {[%emt 00:00:14]} Bh6 {[%clk 00:01:14]} {[%emt
00:00:04]} 28. Be3 {[%clk 00:01:13]} {[%emt 00:00:01]} Bxe3 {[%clk 00:01:12]}
{[%emt 00:00:04]} 29. Qxe3 {[%clk 00:01:14]} {[%emt 00:00:01]} Bd7 {[%clk
00:01:04]} {[%emt 00:00:10]} 30. Nh3 {[%clk 00:01:11]} {[%emt 00:00:04]} Kg7
{[%clk 00:00:55]} {[%emt 00:00:11]} 31. Ng5 {[%clk 00:01:12]} {[%emt 00:00:01]}
fxe4 {[%clk 00:00:54]} {[%emt 00:00:04]} 32. fxe4 {[%clk 00:01:13]} Ng4 {[%clk
00:00:52]} {[%emt 00:00:03]} 33. Qe2 {[%clk 00:01:10]} {[%emt 00:00:04]} Ng8
{[%clk 00:00:43]} {[%emt 00:00:12]} 34. Rf1 {[%clk 00:01:09]} {[%emt 00:00:03]}
N8f6 {[%clk 00:00:43]} {[%emt 00:00:01]} 35. Qf3 {[%clk 00:01:01]} {[%emt
00:00:10]} Qe7 {[%clk 00:00:43]} {[%emt 00:00:02]} 36. h3 {[%clk 00:00:51]}
{[%emt 00:00:12]} Nh6 {[%clk 00:00:42]} {[%emt 00:00:03]} 37. Qe3 {[%clk
00:00:52]} Rf8 {[%clk 00:00:41]} {[%emt 00:00:03]} 38. Rc2 {[%clk 00:00:46]}
{[%emt 00:00:08]} Ba4 {[%clk 00:00:39]} {[%emt 00:00:03]} 39. Rcf2 {[%clk
00:00:45]} {[%emt 00:00:03]} Bd7 {[%clk 00:00:37]} {[%emt 00:00:05]} 40. Qb6
{[%clk 00:00:42]} {[%emt 00:00:06]} Bc8 {[%clk 00:00:33]} {[%emt 00:00:06]} 41.
Rf3 {[%clk 00:00:38]} {[%emt 00:00:06]} Nhg8 {[%clk 00:00:32]} {[%emt
00:00:03]} 42. Qe3 {[%clk 00:00:35]} {[%emt 00:00:05]} Rb4 {[%clk 00:00:32]}
{[%emt 00:00:02]} 43. Qe2 {[%clk 00:00:34]} {[%emt 00:00:02]} Qc7 {[%clk
00:00:32]} {[%emt 00:00:02]} 44. Ne6+ {[%clk 00:00:33]} {[%emt 00:00:03]} Bxe6
{[%clk 00:00:33]} {[%emt 00:00:02]} 45. dxe6 {[%clk 00:00:34]} Qxa5 {[%clk
00:00:24]} {[%emt 00:00:11]} 46. Nd5 {[%clk 00:00:32]} {[%emt 00:00:04]} Rxe4
{[%clk 00:00:25]} {[%emt 00:00:02]} 47. Qd3 {[%clk 00:00:08]} {[%emt 00:00:26]}
Rd4 {[%clk 00:00:25]} {[%emt 00:00:01]} 48. Qb3 {[%clk 00:00:07]} {[%emt
00:00:03]} Qxd5 {[%clk 00:00:25]} {[%emt 00:00:02]} 49. Rxf6 {[%clk 00:00:06]}
{[%emt 00:00:03]} Qxb3 {[%clk 00:00:25]} {[%emt 00:00:03]} 50. Rxf8 {[%clk
00:00:05]} {[%emt 00:00:03]} Qxe6 {[%clk 00:00:22]} {[%emt 00:00:05]} 51. Rb8
{[%clk 00:00:04]} {[%emt 00:00:03]} Rb4 {[%clk 00:00:23]} {[%emt 00:00:02]} 52.
Rd1 {[%clk 00:00:05]} e4 {[%clk 00:00:23]} {[%emt 00:00:02]} 53. Rd8 {[%clk
00:00:05]} {[%emt 00:00:02]} Rxb2 {[%clk 00:00:22]} {[%emt 00:00:03]} 54. R8xd6
{[%clk 00:00:06]} {[%emt 00:00:01]} Qc4 {[%clk 00:00:22]} {[%emt 00:00:01]} 55.
R6d4 {[%clk 00:00:06]} {[%emt 00:00:02]} Qe2 {[%clk 00:00:23]} {[%emt
00:00:01]} 56. Rd7+ {[%clk 00:00:05]} {[%emt 00:00:03]} Kh6 {[%clk 00:00:23]}
{[%emt 00:00:02]} 57. Rg1 {[%clk 00:00:06]} Nf6 {[%clk 00:00:24]} {[%emt
00:00:01]} 0-1

[Event "Paul Kerese Mälestusfestival 2022 Välkturniir"]
[Site "Paul Kerese Mälestusfestival 2022 Kiirturniir"]
[Date "????.??.??"]
[Round "9.3"]
[White "Chukavin, Kirill"]
[Black "Mikko, Rondo"]
[Result "1-0"]
[TimeControl "3 min + 2 sek iga käigu eest"]
[WhiteTitle "FM"]
[WhiteElo "2280"]
[BlackElo "1933"]

1. e4 {[%clk 00:03:03]} {[%emt 00:00:02]} e5 {[%clk 00:02:58]} {[%emt
00:00:05]} 2. Nf3 {[%clk 00:03:04]} {[%emt 00:00:01]} Nc6 {[%clk 00:02:59]}
{[%emt 00:00:01]} 3. Nc3 {[%clk 00:03:04]} {[%emt 00:00:01]} Nf6 {[%clk
00:02:58]} {[%emt 00:00:03]} 4. Be2 {[%clk 00:02:59]} {[%emt 00:00:08]} Be7
{[%clk 00:02:56]} {[%emt 00:00:04]} 5. d4 {[%clk 00:03:00]} {[%emt 00:00:01]}
exd4 {[%clk 00:02:51]} {[%emt 00:00:07]} 6. Nxd4 {[%clk 00:03:01]} {[%emt
00:00:01]} d6 {[%clk 00:02:52]} 7. Be3 {[%clk 00:03:01]} {[%emt 00:00:02]} Nxd4
{[%clk 00:02:50]} {[%emt 00:00:05]} 8. Qxd4 {[%clk 00:02:59]} {[%emt 00:00:04]}
O-O {[%clk 00:02:50]} {[%emt 00:00:02]} 9. f3 {[%clk 00:02:57]} {[%emt
00:00:04]} Nd7 {[%clk 00:02:46]} {[%emt 00:00:06]} 10. O-O {[%clk 00:02:57]}
{[%emt 00:00:03]} Nb6 {[%clk 00:02:42]} {[%emt 00:00:07]} 11. Rad1 {[%clk
00:02:55]} {[%emt 00:00:03]} f5 {[%clk 00:02:36]} {[%emt 00:00:08]} 12. a4
{[%clk 00:02:13]} {[%emt 00:00:45]} Bf6 {[%clk 00:02:34]} {[%emt 00:00:04]} 13.
Qd2 {[%clk 00:02:09]} {[%emt 00:00:06]} Bxc3 {[%clk 00:02:24]} {[%emt
00:00:11]} 14. Qxc3 {[%clk 00:02:10]} {[%emt 00:00:01]} fxe4 {[%clk 00:02:21]}
{[%emt 00:00:05]} 15. a5 {[%clk 00:02:02]} {[%emt 00:00:11]} Nd7 {[%clk
00:02:12]} {[%emt 00:00:10]} 16. fxe4 {[%clk 00:01:53]} {[%emt 00:00:11]} Rxf1+
{[%clk 00:01:11]} {[%emt 00:01:03]} 17. Rxf1 {[%clk 00:01:53]} {[%emt
00:00:02]} Ne5 {[%clk 00:00:46]} {[%emt 00:00:27]} 18. Bc4+ {[%clk 00:01:36]}
{[%emt 00:00:21]} Kh8 {[%clk 00:00:48]} {[%emt 00:00:02]} 19. Bd4 {[%clk
00:01:12]} {[%emt 00:00:27]} Qe8 {[%clk 00:00:16]} {[%emt 00:00:34]} 20. Bxe5
{[%clk 00:01:08]} {[%emt 00:00:06]} dxe5 {[%clk 00:00:17]} {[%emt 00:00:01]} 21.
Qxe5 {[%clk 00:00:54]} {[%emt 00:00:16]} Qd8 {[%clk 00:00:13]} {[%emt
00:00:05]} 22. Rf7 {[%clk 00:00:37]} {[%emt 00:00:19]} 1-0